Workbook

Sheet F3k-Launch
A1: Fkb launch simulation, modified 28 June 2020 | G1: Max height | H1: =MAX(H5:H505) -> 50.25921635 | I1: m
A2: (Effect of Reynoldsnumber on drag polar incorporated)
F3: Time[s] | G3: x(m] | H3: h[m] | I3: V[m/s]
A4: total mass of F3k model | C4: 0.22 | D4: kg | F4: 0.05 | G4: 1.962329473 | H4: 1.5 | I4: 39.4977263
A5: wing reference area | C5: 0.1974 | D5: m2 | F5: 0.1 | G5: 3.864684551 | H5: 1.835411311 | I5: 38.92187668
A6: wing span | C6: 1.5 | D6: m | F6: 0.15 | G6: 5.647948914 | H6: 2.484414537 | I6: 38.27652609
A7: density of air | C7: 1.225 | D7: kg/m3 | F7: 0.2 | G7: 7.259392092 | H7: 3.414698829 | I7: 37.56808038
F8: 0.25 | G8: 8.654555561 | H8: 4.585257732 | I8: 36.80506658
A9: minimum drag of complete model (low value, flaps at launch deflection) | C9: 0.011 | D9: - | F9: 0.3 | G9: 9.798620737 | H9: 5.94852355 | I9: 35.9978639
A10: (Reynoldnumber reference ReCmean =300k) | F10: 0.35 | G10: 10.66720286 | H10: 7.452683964 | I10: 35.1583839
A11: speed at Launch, given in horizontal direction (at height= 1.5 m) | C11: 40 | D11: m/s | F11: 0.4 | G11: 11.24656354 | H11: 9.044018795 | I11: 34.2997097
A12: final climbangle | C12: 80 | D12: deg | F12: 0.45 | G12: 11.53360942 | H12: 10.67095841 | I12: 33.46080657
A13: Release height | C13: 1.5 | D13: m | F13: 0.5 | G13: 11.81359109 | H13: 12.25785898 | I13: 32.63907287
F14: 0.55 | G14: 12.08661859 | H14: 13.80534424 | I14: 31.83150715
F15: 0.6 | G15: 12.35280173 | H15: 15.31403651 | I15: 31.03708999
F16: 0.65 | G16: 12.61224914 | H16: 16.78455155 | I16: 30.25539257
A17: Lift and drag during rotation just after start is estimated, but not validated yet | F17: 0.7 | G17: 12.86506595 | H17: 18.21748515 | I17: 29.48600157
F18: 0.75 | G18: 13.11135386 | H18: 19.61341383 | I18: 28.72851838
F19: 0.8 | G19: 13.35121133 | H19: 20.97289551 | I19: 27.9825584
F20: 0.85 | G20: 13.58473361 | H20: 22.29647018 | I20: 27.24775034
F21: 0.9 | G21: 13.81201291 | H21: 23.58466045 | I21: 26.52373559
F22: 0.95 | G22: 14.03313849 | H22: 24.83797219 | I22: 25.81016756
F23: 1 | G23: 14.24819673 | H23: 26.05689503 | I23: 25.10671115
F24: 1.05 | G24: 14.45727126 | H24: 27.24190293 | I24: 24.41304211
F25: 1.1 | G25: 14.660443 | H25: 28.39345462 | I25: 23.72884658
F26: 1.15 | G26: 14.85779031 | H26: 29.51199411 | I26: 23.05382049
F27: 1.2 | G27: 15.04938899 | H27: 30.59795115 | I27: 22.38766916
F28: 1.25 | G28: 15.23531243 | H28: 31.65174159 | I28: 21.73010674
F29: 1.3 | G29: 15.41563162 | H29: 32.67376788 | I29: 21.08085578
F30: 1.35 | G30: 15.59041525 | H30: 33.66441936 | I30: 20.43964681
F31: 1.4 | G31: 15.75972978 | H31: 34.62407265 | I31: 19.80621787
F32: 1.45 | G32: 15.92363948 | H32: 35.55309203 | I32: 19.18031412
F33: 1.5 | G33: 16.08220648 | H33: 36.4518297 | I33: 18.56168737
F34: 1.55 | G34: 16.23549086 | H34: 37.32062611 | I34: 17.95009576
F35: 1.6 | G35: 16.38355065 | H35: 38.15981023 | I35: 17.34530328
F36: 1.65 | G36: 16.52644192 | H36: 38.96969984 | I36: 16.74707937
F37: 1.7 | G37: 16.6642188 | H37: 39.75060169 | I37: 16.15519856
F38: 1.75 | G38: 16.79693351 | H38: 40.50281181 | I38: 15.56943997
F39: 1.8 | G39: 16.92463641 | H39: 41.22661566 | I39: 14.98958695
F40: 1.85 | G40: 17.04737603 | H40: 41.92228829 | I40: 14.41542655
F41: 1.9 | G41: 17.1651991 | H41: 42.59009452 | I41: 13.84674907
F42: 1.95 | G42: 17.27815056 | H42: 43.23028904 | I42: 13.28334752
F43: 2 | G43: 17.38627356 | H43: 43.84311648 | I43: 12.725017
F44: 2.05 | G44: 17.48960951 | H44: 44.42881153 | I44: 12.17155405
F45: 2.1 | G45: 17.58819805 | H45: 44.98759889 | I45: 11.62275589
F46: 2.15 | G46: 17.68207706 | H46: 45.51969323 | I46: 11.07841945
F47: 2.2 | G47: 17.77128265 | H47: 46.02529917 | I47: 10.53834034
F48: 2.25 | G48: 17.85584909 | H48: 46.50461104 | I48: 10.00231146
F49: 2.3 | G49: 17.93580882 | H49: 46.95781264 | I49: 9.470121308
F50: 2.35 | G50: 18.01119234 | H50: 47.38507688 | I50: 8.941551813
F51: 2.4 | G51: 18.08202814 | H51: 47.78656524 | I51: 8.416375476
F52: 2.45 | G52: 18.14834257 | H52: 48.16242703 | I52: 7.894351543
F53: 2.5 | G53: 18.21015964 | H53: 48.5127983 | I53: 7.375220747
F54: 2.55 | G54: 18.26750075 | H54: 48.83780045 | I54: 6.858697912
F55: 2.6 | G55: 18.32038438 | H55: 49.13753814 | I55: 6.344461249
F56: 2.65 | G56: 18.3688255 | H56: 49.41209628 | I56: 5.832136421
F57: 2.7 | G57: 18.41283485 | H57: 49.66153567 | I57: 5.321271992
F58: 2.75 | G58: 18.4524177 | H58: 49.88588628 | I58: 4.811300124
F59: 2.8 | G59: 18.48757205 | H59: 50.08513665 | I59: 4.301470736
F60: 2.85 | G60: 18.51828545 | H60: 50.25921635 | I60: 3.790735011
F61: 0 | G61: 0 | H61: 0 | I61: 0
F62: 0 | G62: 0 | H62: 0 | I62: 0
F63: 0 | G63: 0 | H63: 0 | I63: 0
F64: 0 | G64: 0 | H64: 0 | I64: 0
F65: 0 | G65: 0 | H65: 0 | I65: 0
F66: 0 | G66: 0 | H66: 0 | I66: 0
F67: 0 | G67: 0 | H67: 0 | I67: 0
F68: 0 | G68: 0 | H68: 0 | I68: 0
F69: 0 | G69: 0 | H69: 0 | I69: 0
F70: 0 | G70: 0 | H70: 0 | I70: 0
F71: 0 | G71: 0 | H71: 0 | I71: 0
F72: 0 | G72: 0 | H72: 0 | I72: 0
F73: 0 | G73: 0 | H73: 0 | I73: 0
F74: 0 | G74: 0 | H74: 0 | I74: 0
F75: 0 | G75: 0 | H75: 0 | I75: 0
F76: 0 | G76: 0 | H76: 0 | I76: 0
F77: 0 | G77: 0 | H77: 0 | I77: 0
F78: 0 | G78: 0 | H78: 0 | I78: 0
F79: 0 | G79: 0 | H79: 0 | I79: 0
F80: 0 | G80: 0 | H80: 0 | I80: 0
F81: 0 | G81: 0 | H81: 0 | I81: 0
F82: 0 | G82: 0 | H82: 0 | I82: 0
F83: 0 | G83: 0 | H83: 0 | I83: 0
F84: 0 | G84: 0 | H84: 0 | I84: 0
F85: 0 | G85: 0 | H85: 0 | I85: 0
F86: 0 | G86: 0 | H86: 0 | I86: 0
F87: 0 | G87: 0 | H87: 0 | I87: 0
F88: 0 | G88: 0 | H88: 0 | I88: 0
F89: 0 | G89: 0 | H89: 0 | I89: 0
F90: 0 | G90: 0 | H90: 0 | I90: 0
F91: 0 | G91: 0 | H91: 0 | I91: 0
F92: 0 | G92: 0 | H92: 0 | I92: 0
F93: 0 | G93: 0 | H93: 0 | I93: 0
F94: 0 | G94: 0 | H94: 0 | I94: 0
F95: 0 | G95: 0 | H95: 0 | I95: 0
F96: 0 | G96: 0 | H96: 0 | I96: 0
F97: 0 | G97: 0 | H97: 0 | I97: 0
F98: 0 | G98: 0 | H98: 0 | I98: 0
F99: 0 | G99: 0 | H99: 0 | I99: 0
F100: 0 | G100: 0 | H100: 0 | I100: 0
F101: 0 | G101: 0 | H101: 0 | I101: 0
F102: 0 | G102: 0 | H102: 0 | I102: 0
F103: 0 | G103: 0 | H103: 0 | I103: 0
F104: 0 | G104: 0 | H104: 0 | I104: 0
F105: 0 | G105: 0 | H105: 0 | I105: 0
F106: 0 | G106: 0 | H106: 0 | I106: 0
F107: 0 | G107: 0 | H107: 0 | I107: 0
F108: 0 | G108: 0 | H108: 0 | I108: 0
F109: 0 | G109: 0 | H109: 0 | I109: 0
F110: 0 | G110: 0 | H110: 0 | I110: 0
F111: 0 | G111: 0 | H111: 0 | I111: 0
F112: 0 | G112: 0 | H112: 0 | I112: 0
F113: 0 | G113: 0 | H113: 0 | I113: 0
F114: 0 | G114: 0 | H114: 0 | I114: 0
F115: 0 | G115: 0 | H115: 0 | I115: 0
F116: 0 | G116: 0 | H116: 0 | I116: 0
F117: 0 | G117: 0 | H117: 0 | I117: 0
F118: 0 | G118: 0 | H118: 0 | I118: 0
F119: 0 | G119: 0 | H119: 0 | I119: 0
F120: 0 | G120: 0 | H120: 0 | I120: 0
F121: 0 | G121: 0 | H121: 0 | I121: 0
F122: 0 | G122: 0 | H122: 0 | I122: 0
F123: 0 | G123: 0 | H123: 0 | I123: 0
F124: 0 | G124: 0 | H124: 0 | I124: 0
F125: 0 | G125: 0 | H125: 0 | I125: 0
F126: 0 | G126: 0 | H126: 0 | I126: 0
F127: 0 | G127: 0 | H127: 0 | I127: 0
F128: 0 | G128: 0 | H128: 0 | I128: 0
F129: 0 | G129: 0 | H129: 0 | I129: 0
F130: 0 | G130: 0 | H130: 0 | I130: 0
F131: 0 | G131: 0 | H131: 0 | I131: 0
F132: 0 | G132: 0 | H132: 0 | I132: 0
F133: 0 | G133: 0 | H133: 0 | I133: 0
F134: 0 | G134: 0 | H134: 0 | I134: 0
F135: 0 | G135: 0 | H135: 0 | I135: 0
F136: 0 | G136: 0 | H136: 0 | I136: 0
F137: 0 | G137: 0 | H137: 0 | I137: 0
F138: 0 | G138: 0 | H138: 0 | I138: 0
F139: 0 | G139: 0 | H139: 0 | I139: 0
F140: 0 | G140: 0 | H140: 0 | I140: 0
F141: 0 | G141: 0 | H141: 0 | I141: 0
F142: 0 | G142: 0 | H142: 0 | I142: 0
F143: 0 | G143: 0 | H143: 0 | I143: 0
F144: 0 | G144: 0 | H144: 0 | I144: 0
F145: 0 | G145: 0 | H145: 0 | I145: 0
F146: 0 | G146: 0 | H146: 0 | I146: 0
F147: 0 | G147: 0 | H147: 0 | I147: 0
F148: 0 | G148: 0 | H148: 0 | I148: 0
F149: 0 | G149: 0 | H149: 0 | I149: 0
F150: 0 | G150: 0 | H150: 0 | I150: 0
F151: 0 | G151: 0 | H151: 0 | I151: 0
F152: 0 | G152: 0 | H152: 0 | I152: 0
F153: 0 | G153: 0 | H153: 0 | I153: 0
F154: 0 | G154: 0 | H154: 0 | I154: 0
F155: 0 | G155: 0 | H155: 0 | I155: 0
F156: 0 | G156: 0 | H156: 0 | I156: 0
F157: 0 | G157: 0 | H157: 0 | I157: 0
F158: 0 | G158: 0 | H158: 0 | I158: 0
F159: 0 | G159: 0 | H159: 0 | I159: 0
F160: 0 | G160: 0 | H160: 0 | I160: 0
F161: 0 | G161: 0 | H161: 0 | I161: 0
F162: 0 | G162: 0 | H162: 0 | I162: 0
F163: 0 | G163: 0 | H163: 0 | I163: 0
F164: 0 | G164: 0 | H164: 0 | I164: 0
F165: 0 | G165: 0 | H165: 0 | I165: 0
F166: 0 | G166: 0 | H166: 0 | I166: 0
F167: 0 | G167: 0 | H167: 0 | I167: 0
F168: 0 | G168: 0 | H168: 0 | I168: 0
F169: 0 | G169: 0 | H169: 0 | I169: 0
F170: 0 | G170: 0 | H170: 0 | I170: 0
F171: 0 | G171: 0 | H171: 0 | I171: 0
F172: 0 | G172: 0 | H172: 0 | I172: 0
F173: 0 | G173: 0 | H173: 0 | I173: 0
F174: 0 | G174: 0 | H174: 0 | I174: 0
F175: 0 | G175: 0 | H175: 0 | I175: 0
F176: 0 | G176: 0 | H176: 0 | I176: 0
F177: 0 | G177: 0 | H177: 0 | I177: 0
F178: 0 | G178: 0 | H178: 0 | I178: 0
F179: 0 | G179: 0 | H179: 0 | I179: 0
F180: 0 | G180: 0 | H180: 0 | I180: 0
F181: 0 | G181: 0 | H181: 0 | I181: 0
F182: 0 | G182: 0 | H182: 0 | I182: 0
F183: 0 | G183: 0 | H183: 0 | I183: 0
F184: 0 | G184: 0 | H184: 0 | I184: 0
F185: 0 | G185: 0 | H185: 0 | I185: 0
F186: 0 | G186: 0 | H186: 0 | I186: 0
F187: 0 | G187: 0 | H187: 0 | I187: 0
F188: 0 | G188: 0 | H188: 0 | I188: 0
F189: 0 | G189: 0 | H189: 0 | I189: 0
F190: 0 | G190: 0 | H190: 0 | I190: 0
F191: 0 | G191: 0 | H191: 0 | I191: 0
F192: 0 | G192: 0 | H192: 0 | I192: 0
F193: 0 | G193: 0 | H193: 0 | I193: 0
F194: 0 | G194: 0 | H194: 0 | I194: 0
F195: 0 | G195: 0 | H195: 0 | I195: 0
F196: 0 | G196: 0 | H196: 0 | I196: 0
F197: 0 | G197: 0 | H197: 0 | I197: 0
F198: 0 | G198: 0 | H198: 0 | I198: 0
F199: 0 | G199: 0 | H199: 0 | I199: 0
F200: 0 | G200: 0 | H200: 0 | I200: 0
... 305 more rows

Sheet Blad3
A1: Programme is in progress, please be patient
A2: ++++++++F3K LAUNCH+++++++++
A3: ++++AUTHOR D.F. VOLKERS+++++
A4: ++++Zomerland 66+++++++++++++
A5: ++++5663 HW Geldrop++++++++++
A6: ++++THE NETHERLANDS++++++++
A7: ++++TEL: 0031 40 2850935+++++++
A8: E-MAIL:theo.volkers@hccnet.nl
A10: =======FREEWARE=======F3KLAUNCH.XLS======6 June 2020===

Sheet Blad1
A1: To derive effect of Reynoldsnumber on CD0
B2: XFLR5_v3.19
B4: Calculated | C4: polar | D4: for: | E4: NXT_Mid34cm_Tjarko
B6: 1 | C6: 1 | D6: Reynolds | E6: number | F6: fixed | G6: Mach | H6: number | I6: fixed
B8: xtrf | C8: = | D8: 1 | E8: (top) | F8: 1 | G8: (bottom)
B9: Mach | C9: = | D9: 0 | E9: Re | F9: = | G9: 0.07 | H9: e | I9: 6 | J9: Ncrit | K9: = | L9: 9
H10: Top | I10: Bot
B11: alpha | C11: Re | D11: CL | E11: CD | F11: CDp | G11: CM | H11: Xtr | I11: Xtr | J11: Cpmin | K11: Chinge | L11: XCp
B12: ------- | C12: -------- | D12: -------- | E12: --------- | F12: --------- | G12: -------- | H12: ------- | I12: ------- | J12: -------- | K12: --------- | L12: ---------
B13: -0.9 | C13: 50000 | D13: -0.0081 | E13: 0.01365 | F13: 0.00337 | G13: -0.0134 | H13: 1 | I13: 1 | J13: -0.6106 | K13: 0 | L13: -1.4111
B14: -0.9 | C14: 100000 | D14: -0.0064 | E14: 0.00966 | F14: 0.00246 | G14: -0.0135 | H14: 1 | I14: 1 | J14: -0.6369 | K14: 0 | L14: -1.8647
B15: -0.9 | C15: 150000 | D15: -0.0053 | E15: 0.0079 | F15: 0.00205 | G15: -0.0137 | H15: 1 | I15: 1 | J15: -0.6518 | K15: 0 | L15: -2.3352
B16: -0.9 | C16: 200000 | D16: -0.0045 | E16: 0.00686 | F16: 0.00181 | G16: -0.0138 | H16: 1 | I16: 1 | J16: -0.6621 | K16: 0 | L16: -2.8698
B17: -0.9 | C17: 250000 | D17: -0.0037 | E17: 0.00615 | F17: 0.00165 | G17: -0.014 | H17: 1 | I17: 1 | J17: -0.6698 | K17: 0 | L17: -3.5034
B18: -0.9 | C18: 300000 | D18: -0.0031 | E18: 0.00562 | F18: 0.00152 | G18: -0.0141 | H18: 1 | I18: 1 | J18: -0.6758 | K18: 0 | L18: -4.264
B19: -0.9 | C19: 350000 | D19: 0.0091 | E19: 0.00548 | F19: 0.00137 | G19: -0.0164 | H19: 0.8308 | I19: 0.9534 | J19: -0.6625 | K19: 0 | L19: 2.0567
B20: -0.9 | C20: 400000 | D20: 0.0061 | E20: 0.00569 | F20: 0.00131 | G20: -0.0159 | H20: 0.7633 | I20: 0.8835 | J20: -0.6719 | K20: 0 | L20: 2.8626
B21: -0.9 | C21: 450000 | D21: 0.0105 | E21: 0.0058 | F21: 0.00125 | G21: -0.0172 | H21: 0.7372 | I21: 0.8275 | J21: -0.6698 | K21: 0 | L21: 1.9013
B22: -0.9 | C22: 500000 | D22: 0.0133 | E22: 0.00593 | F22: 0.00119 | G22: -0.0181 | H22: 0.7209 | I22: 0.766 | J22: -0.6694 | K22: 0 | L22: 1.6148
B23: -0.9 | C23: 550000 | D23: 0.0158 | E23: 0.00627 | F23: 0.00109 | G23: -0.0186 | H23: 0.7068 | I23: 0.6302 | J23: -0.6688 | K23: 0 | L23: 1.4331
B24: -0.9 | C24: 600000 | D24: 0.0164 | E24: 0.00633 | F24: 0.00103 | G24: -0.0186 | H24: 0.6954 | I24: 0.5627 | J24: -0.6704 | K24: 0 | L24: 1.3891
B25: -0.9 | C25: 650000 | D25: 0.0164 | E25: 0.00643 | F25: 0.00099 | G25: -0.0184 | H25: 0.6811 | I25: 0.5036 | J25: -0.6725 | K25: 0 | L25: 1.3751
B26: -0.9 | C26: 700000 | D26: 0.0164 | E26: 0.00655 | F26: 0.00093 | G26: -0.0182 | H26: 0.6679 | I26: 0.4304 | J26: -0.6744 | K26: 0 | L26: 1.3635
B29: XFLR5_v3.19
N30: const | O30: 0.006 | Q30: const*Re^.45 | S30: Delta_CD_Reynolds | U30: '==.010*(300000/ReCmean)^.38-.010
B31: Calculated | C31: polar | D31: for: | E31: NXT_Mid34cm_Tjarko | P31: 50000 | Q31: =$O$30*(300000/P31)^0.45 -> 0.01343752586 | S31: =0.01*(300000/P31)^0.38 -> 0.01975592984
P32: 100000 | Q32: =$O$30*(300000/P32)^0.45 -> 0.009836844701 | S32: =0.01*(300000/P32)^0.38 -> 0.01518119913
B33: 1 | C33: 1 | D33: Reynolds | E33: number | F33: fixed | G33: Mach | H33: number | I33: fixed | P33: 150000 | Q33: 0.008196241541 | S33: 0.01301341855
P34: 200000 | Q34: 0.00720099181 | S34: 0.01166580408
B35: xtrf | C35: = | D35: 1 | E35: (top) | F35: 1 | G35: (bottom) | P35: 250000 | Q35: 0.006513025988 | S35: 0.01071738602
B36: Mach | C36: = | D36: 0 | E36: Re | F36: = | G36: 0.07 | H36: e | I36: 6 | J36: Ncrit | K36: = | L36: 9 | P36: 300000 | Q36: 0.006 | S36: 0.01
H37: Top | I37: Bot | P37: 350000 | Q37: 0.005597900761
B38: alpha | C38: Re | D38: CL | E38: CD | F38: CDp | G38: CM | H38: Xtr | I38: Xtr | J38: Cpmin | K38: Chinge | L38: XCp | M38: Chinge | N38: XCp | P38: 400000 | Q38: 0.005271434553
B39: ------- | C39: -------- | D39: -------- | E39: --------- | F39: --------- | G39: -------- | H39: ------- | I39: ------- | J39: -------- | K39: --------- | L39: --------- | P39: 450000 | Q39: 0.004999311338
B40: 0 | C40: 50000 | D40: 0.0856 | E40: 0.01369 | F40: 0.00313 | G40: -0.0133 | H40: 1 | I40: 1 | J40: -0.3931 | K40: 0 | L40: 0.4047 | P40: 500000 | Q40: 0.004767814093
B41: 0 | C41: 100000 | D41: 0.0892 | E41: 0.0097 | F41: 0.00234 | G41: -0.0136 | H41: 1 | I41: 1 | J41: -0.401 | K41: 0 | L41: 0.4024 | P41: 550000 | Q41: 0.004567647753
B42: 0 | C42: 150000 | D42: 0.0914 | E42: 0.00794 | F42: 0.00199 | G42: -0.014 | H42: 1 | I42: 1 | J42: -0.4056 | K42: 0 | L42: 0.4023 | P42: 600000 | Q42: 0.004392257088
B43: 0 | C43: 200000 | D43: 0.12 | E43: 0.00698 | F43: 0.00167 | G43: -0.0196 | H43: 0.8704 | I43: 1 | J43: -0.4263 | K43: 0 | L43: 0.4128 | P43: 650000 | Q43: 0.004236866739
B44: 0 | C44: 250000 | D44: 0.1153 | E44: 0.00674 | F44: 0.00144 | G44: -0.0176 | H44: 0.7645 | I44: 1 | J44: -0.4264 | K44: 0 | L44: 0.4021 | P44: 700000 | Q44: 0.004097903216
B45: 0 | C45: 300000 | D45: 0.1115 | E45: 0.00651 | F45: 0.00136 | G45: -0.0166 | H45: 0.7304 | I45: 1 | J45: -0.426 | K45: 0 | L45: 0.3986 | Z45: som
B46: 0 | C46: 350000 | D46: 0.1093 | E46: 0.00635 | F46: 0.00132 | G46: -0.0162 | H46: 0.7096 | I46: 1 | J46: -0.426 | K46: 0 | L46: 0.3971 | O46: RECmean | P46: cd friction= cf*opp/Sref | Q46: romp | R46: kielvlak | S46: stabilo | T46: romp+stab+kielvl | U46: cd friction + cd pressure | V46: romp+stabilo | X46: const*Re^.45 | Z46: CD_ReC_dependent
B47: 0 | C47: 400000 | D47: 0.1089 | E47: 0.00598 | F47: 0.00122 | G47: -0.016 | H47: 0.6938 | I47: 1 | J47: -0.427 | K47: 0 | L47: 0.3968 | O47: =P47*0.1316/14.6*1000000 -> 36054.79452 | P47: 4 | Q47: 0.002062330233 | R47: 0.002208713273 | S47: 0.002560410334 | T47: 0.00683145384 | U47: 0.007534088104 | V47: 0.004622740568 | X47: =0.006*(300000/O47)^0.45 -> 0.01556762831 | Z47: =U47+X47 -> 0.02310171641
B48: 0 | C48: 450000 | D48: 0.108 | E48: 0.00575 | F48: 0.00114 | G48: -0.0159 | H48: 0.6738 | I48: 1 | J48: -0.4276 | K48: 0 | L48: 0.3962 | O48: =P48*0.1316/14.6*1000000 -> 54082.19178 | P48: 6 | Q48: 0.001901691024 | R48: 0.001711752786 | S48: 0.002092857143 | T48: 0.005706300953 | U48: 0.006408935217 | V48: 0.003994548167 | X48: =0.006*(300000/O48)^0.45 -> 0.01297123678 | Z48: =U48+X48 -> 0.019380172
B49: 0 | C49: 500000 | D49: 0.1075 | E49: 0.00553 | F49: 0.00104 | G49: -0.0158 | H49: 0.6535 | I49: 1 | J49: -0.4283 | K49: 0 | L49: 0.3959 | O49: 72109.58904 | P49: 8 | Q49: 0.001795362746 | R49: 0.001501925025 | S49: 0.001725493921 | T49: 0.005022781693 | U49: 0.005725415957 | V49: 0.003520856667 | X49: 0.01139617096 | Z49: 0.01712158692
B50: 0 | C50: 550000 | D50: 0.107 | E50: 0.00537 | F50: 0.00095 | G50: -0.0157 | H50: 0.6329 | I50: 1 | J50: -0.4288 | K50: 0 | L50: 0.3958 | O50: 90136.9863 | P50: 10 | Q50: 0.001716999651 | R50: 0.001347315096 | S50: 0.001558510638 | T50: 0.004622825385 | U50: 0.005325459649 | V50: 0.003275510289 | X50: 0.01030740759 | Z50: 0.01563286724
B51: 0 | C51: 600000 | D51: 0.1018 | E51: 0.00535 | F51: 0.00092 | G51: -0.0147 | H51: 0.6072 | I51: 0.94 | J51: -0.4264 | K51: 0 | L51: 0.3934 | O51: 135205.4795 | P51: 15 | Q51: 0.001583258962 | R51: 0.001104356636 | S51: 0.001280205167 | T51: 0.003967820765 | U51: 0.004670455029 | V51: 0.002863464129 | X51: 0.008588323273 | Z51: 0.0132587783
B52: 0 | C52: 650000 | D52: 0.1055 | E52: 0.0054 | F52: 0.00087 | G52: -0.0158 | H52: 0.5777 | I52: 0.8998 | J52: -0.4291 | K52: 0 | L52: 0.3992 | O52: 180273.9726 | P52: 20 | Q52: 0.001494735013 | R52: 0.0009607902736 | S52: 0.001113221884 | T52: 0.003568747171 | U52: 0.004271381435 | V52: 0.002607956897 | X52: 0.007545464009 | Z52: 0.01181684544
B53: 0 | C53: 700000 | D53: 0.1092 | E53: 0.00547 | F53: 0.00083 | G53: -0.0169 | H53: 0.5523 | I53: 0.8641 | J53: -0.4319 | K53: 0 | L53: 0.4041 | O53: 198301.3699 | P53: 22 | U53: 0.0044 | V53: geschat | X53: 0.007228684058 | Z53: 0.01162868406
O54: 300000 | Z54: 0.0102
